bitfinex/quotes_ETHUSD_20250329
["timestamp","ask_amount","ask_price","bid_price","bid_amount"]
[1743287289707,3.0,1821.3,1821.2,6.27328]
[1743287293513,3.0,1821.3,1821.2,5.49088]
[1743287295417,5.25409813,1821.3,1821.2,5.49088]
[1743287295912,5.57409118,1821.3,1821.2,5.49088]
[1743287298988,0.31999305,1821.3,1821.2,6.27918]
[1743287299315,3.0,1821.6,1821.4,5.49028]
[1743287299478,3.0,1821.6,1821.5,5.48998]
[1743287299918,3.0,1821.6,1821.4,5.49028]
[1743287304622,2.25409813,1821.7,1821.4,5.49007]
[1743287304931,7.39709813,1821.9,1821.7,5.48921]
[1743287305220,3.0,1821.8,1821.7,5.48921]
[1743287305999,8.16950794,1821.9,1821.7,5.48921]
[1743287306000,2.25409813,1821.9,1821.7,5.4892]
[1743287306324,2.25409813,1821.9,1821.7,5.48928]
[1743287307631,2.25409813,1821.9,1821.7,10.97847]
[1743287307831,2.25409813,1821.9,1821.8,5.48907]
[1743287309730,2.25409813,1821.9,1821.8,6.26227]
[1743287310636,2.25409813,1821.9,1821.8,5.48907]
[1743287310936,5.54751715,1821.9,1821.8,5.48907]
[1743287312810,0.29341902,1821.9,1821.8,7.41498757]
[1743287313012,0.29341902,1821.9,1821.8,7.360096]
[1743287313192,2.25409813,1822.2,1822.0,5.48845]
[1743287314004,2.25409813,1822.2,1822.0,5.4883]
[1743287315033,2.25409813,1822.2,1822.0,10.97656]
[1743287315232,2.25409813,1822.2,1822.0,12.074216]
[1743287315514,2.25409813,1822.2,1822.1,5.48817]
[1743287315915,2.25409813,1822.2,1822.0,7.338916]
[1743287316543,2.25409813,1822.2,1822.1,5.48817]
[1743287316936,2.25409813,1822.2,1822.0,5.48826]
[1743287316937,2.25409813,1822.2,1822.0,5.48836]
[1743287317452,2.25409813,1822.2,1822.0,5.48834]
[1743287317653,2.25409813,1822.2,1822.1,5.48817]
[1743287320463,2.25409813,1822.2,1822.0,5.48834]
[1743287320767,2.25409813,1822.2,1822.0,10.97668]
[1743287321063,2.25409813,1822.2,1822.0,5.48834]
[1743287321264,2.25409813,1822.2,1822.0,6.037174]
[1743287322357,2.25409813,1822.2,1822.1,5.48817]
[1743287322768,3.327,1822.4,1822.2,5.48787]
[1743287322967,3.327,1822.4,1822.1,5.48817]
[1743287323465,3.327,1822.4,1822.1,10.97615]
[1743287323868,2.25409813,1822.2,1822.1,5.48798]
[1743287324165,2.25409813,1822.2,1822.1,6.7157964]
[1743287325856,2.5524184,1822.2,1822.1,6.7157964]
[1743287328874,1.64973773,1822.2,1822.1,6.7157964]
[1743287329637,1.64973773,1822.2,1822.1,6.77067491]
[1743287329872,1.35141746,1822.3,1822.2,5.48787]
[1743287330054,1.64980482,1822.3,1822.2,6.79479449]
[1743287330662,0.29838736,1822.3,1822.2,7.60549449]
[1743287330861,1.35141746,1822.4,1822.3,5.48757]
[1743287331182,1.64980482,1822.4,1822.3,5.48757]
[1743287331489,1.64980482,1822.4,1822.3,6.79687645]
[1743287332889,3.29838736,1822.4,1822.3,6.79687645]
[1743287338606,0.29838736,1822.4,1822.3,7.60757645]
[1743287338772,0.29838736,1822.4,1822.3,7.66244763]
[1743287338972,2.25155468,1822.9,1822.7,5.48631]
[1743287340884,0.29838736,1822.8,1822.7,5.48623]
[1743287341097,2.25155468,1822.9,1822.7,5.48623]
[1743287341475,0.29838736,1822.8,1822.7,6.664588]
[1743287341681,2.25155468,1822.9,1822.7,6.664588]
[1743287341893,0.29838736,1822.8,1822.7,6.664588]
[1743287342094,2.25155468,1822.9,1822.7,6.664588]
[1743287342293,0.29838736,1822.8,1822.7,6.664588]
[1743287342496,2.25155468,1822.9,1822.7,6.664588]
[1743287342698,2.25155468,1822.9,1822.7,12.150778]
[1743287343009,2.25155468,1822.9,1822.8,5.48606]
[1743287343395,2.25155468,1822.9,1822.8,1.2150608]
[1743287343597,2.25155468,1822.9,1822.7,5.48619]
[1743287343891,2.25155468,1822.9,1822.7,10.97233]
[1743287344205,2.25155468,1822.9,1822.7,5.48614]
[1743287344573,2.25155468,1822.9,1822.7,5.48613]
[1743287345513,2.25155468,1822.9,1822.4,0.7977]
[1743287345669,2.25155468,1822.7,1822.6,5.48655]
[1743287345973,2.25155468,1822.7,1822.6,6.583901]
[1743287355017,1.3506251,1822.7,1822.6,12.070441]
[1743287355917,1.65243421,1822.7,1822.6,12.070441]
[1743287358221,1.65243421,1822.7,1822.6,5.48654]
[1743287358928,1.65243421,1822.7,1822.4,6.28487]
[1743287359108,1.3506251,1822.5,1822.3,5.48732]
[1743287359432,0.327,1822.6,1822.3,5.48732]
[1743287359433,1.3506251,1822.4,1822.3,5.48732]
[1743287359579,1.3506251,1822.4,1822.3,6.664607]
[1743287359784,1.6608914,1822.4,1822.3,6.664607]
[1743287361085,1.6608914,1822.4,1822.3,7.415907]
[1743287366429,0.3102663,1822.4,1822.3,7.47077494]
[1743287367025,0.3102663,1822.4,1822.3,22.78777494]
[1743287367227,1.3506251,1822.7,1822.6,6.23796]
[1743287367530,1.6608914,1822.7,1822.6,7.410441]
[1743287367831,0.3102663,1822.7,1822.6,7.410441]
[1743287368220,1.3506251,1822.8,1822.7,5.48636]
[1743287368602,1.63629466,1822.8,1822.7,5.48636]
[1743287377236,0.28566956,1822.8,1822.7,5.48636]
[1743287377438,0.28566956,1822.8,1822.7,7.7940401]
[1743287377737,1.3506251,1822.9,1822.8,5.48606]
[1743287380246,1.3506251,1823.1,1823.0,5.48519]
[1743287381617,0.327,1823.3,1823.2,5.48486]
[1743287381821,1.6776251,1823.3,1823.2,5.48486]
[1743287385340,1.3506251,1823.3,1823.2,5.48486]
[1743287385948,1.63972193,1823.3,1823.2,5.48486]
[1743287387836,1.63972193,1823.3,1823.1,5.48488]
[1743287388041,1.3506251,1823.2,1823.1,5.48516]
[1743287388642,1.63972193,1823.2,1823.1,5.48516]
[1743287391646,0.28909683,1823.2,1823.1,5.48516]
[1743287391860,1.63972193,1823.2,1823.1,7.42875897]
[1743287392149,1.64072968,1823.2,1823.1,7.373911]
[1743287393327,0.29010458,1823.2,1823.1,7.373911]
[1743287393527,0.29010458,1823.2,1823.1,7.42875665]
[1743287395952,0.29010458,1823.2,1823.1,17.553911]
[1743287396257,1.3506251,1823.5,1823.4,5.48426]
[1743287396459,1.3506251,1823.5,1823.4,6.58113]
[1743287396629,1.64072968,1823.5,1823.4,6.58113]
[1743287400441,1.64072968,1823.5,1823.4,6.63596627]
[1743287400755,1.64072968,1823.5,1823.4,6.58113]
[1743287401055,1.64072968,1823.5,1823.4,6.63596624]
[1743287401257,1.64072968,1823.5,1823.4,7.42766624]
[1743287401461,0.29010458,1823.5,1823.4,7.42766624]
[1743287402052,0.29010458,1823.5,1823.4,7.37283]
[1743287402350,1.64072968,1823.5,1823.4,6.58113]
[1743287405060,4.96772968,1823.5,1823.3,5.48444]
[1743287405260,1.3506251,1823.4,1823.3,5.48444]
[1743287405937,1.64072968,1823.5,1823.4,5.48426]
[1743287409468,1.96772968,1823.5,1823.2,5.48484]
[1743287409637,1.3506251,1823.3,1823.2,5.48484]
[1743287410038,1.3506251,1823.3,1823.2,6.6915421]
[1743287410540,1.3506251,1823.4,1823.3,5.48426]
[1743287412263,0.29010458,1823.5,1823.3,5.48426]
[1743287412470,1.64072968,1823.5,1823.4,5.48426]
[1743287412670,1.64072968,1823.5,1823.4,6.581112]
[1743287417375,0.29010458,1823.5,1823.4,6.581112]
[1743287417684,0.327,1823.8,1823.5,5.48395]
[1743287417879,1.3506251,1823.6,1823.5,5.48395]
[1743287422673,1.62207055,1823.6,1823.5,5.48395]
[1743287422891,1.62207055,1823.6,1823.5,6.6904442]
[1743287430126,1.62207055,1823.6,1823.5,6.74527813]
[1743287433528,1.62207055,1823.6,1823.5,6.6904442]
[1743287437025,1.12207055,1823.6,1823.5,6.6904442]
[1743287450595,1.12207055,1823.6,1823.5,5.48395]
[1743287468288,1.44907055,1823.6,1823.4,5.48415]
[1743287468478,0.59844545,1823.6,1823.5,5.48395]
[1743287468779,1.62207055,1823.6,1823.5,5.48395]
[1743287469511,1.62375261,1823.6,1823.5,5.48395]
[1743287469684,1.62375261,1823.6,1823.5,6.58076]
[1743287475001,0.27312751,1823.6,1823.5,7.44009375]
[1743287475172,0.27312751,1823.6,1823.5,7.38526]
[1743287475378,1.3506251,1823.6,1823.5,7.38526]
[1743287475692,1.60211434,1823.6,1823.5,7.38526]
[1743287475876,0.25148924,1823.6,1823.5,7.38526]
[1743287476078,1.3506251,1823.7,1823.6,5.48365]
[1743287476390,1.3506251,1823.7,1823.6,6.770541]
[1743287477505,1.3506251,1823.7,1823.6,5.48365]
[1743287480501,1.3506251,1823.8,1823.7,5.48335]
[1743287481362,1.3506251,1823.9,1823.8,5.48305]
[1743287481707,1.3506251,1824.3,1823.8,5.48305]
[1743287481708,1.3506251,1824.0,1823.9,5.48275]
[1743287482789,1.60211434,1824.0,1823.9,5.48275]
[1743287483004,0.25148924,1824.0,1823.9,6.70972242]
[1743287483301,1.3506251,1824.1,1824.0,5.48245]
[1743287483602,3.327,1824.3,1824.1,5.482]
[1743287483903,3.327,1824.3,1824.2,5.48185]
[1743287483904,0.327,1824.3,1824.2,5.48185]
[1743287484261,0.327,1824.3,1824.1,5.482]
[1743287484705,1.3506251,1824.2,1824.1,5.482]
[1743287485298,1.3506251,1824.2,1824.1,6.578444]
[1743287486178,1.3506251,1824.2,1824.1,1.096444]
[1743287486507,1.3506251,1824.2,1824.0,5.48244]
[1743287486678,1.3506251,1824.1,1824.0,5.48244]
[1743287488479,1.6776251,1824.1,1823.9,6.65486]
[1743287488678,1.3506251,1824.0,1823.9,1.17215]
[1743287488913,1.3506251,1824.0,1823.8,5.48282]
[1743287489212,1.3506251,1824.0,1823.9,5.48275]
[1743287493810,1.3506251,1824.1,1823.9,10.96523]
[1743287494221,1.3506251,1824.1,1824.0,5.48245]
[1743287494817,1.3506251,1824.1,1823.9,5.48248]
[1743287495016,1.3506251,1824.0,1823.9,6.579031]
[1743287495912,1.3506251,1824.2,1823.9,12.061591]
[1743287496102,1.3506251,1824.2,1824.1,5.48215]
[1743287497585,1.60561852,1824.2,1824.1,5.48215]
[1743287497784,1.60561852,1824.2,1824.0,5.4822]
[1743287498014,1.3506251,1824.1,1824.0,6.2190351]
[1743287498393,1.60568586,1824.1,1824.0,6.2190351]
[1743287500938,1.60568586,1824.1,1824.0,0.7368351]
[1743287501235,1.60568586,1824.1,1823.8,5.48289]
[1743287501236,1.93268586,1824.1,1823.8,5.48289]
[1743287501381,1.3506251,1824.0,1823.9,5.48274]
[1743287502088,1.60568586,1824.0,1823.9,5.48274]
[1743287502283,0.25506076,1824.0,1823.9,5.48274]
[1743287502504,0.25506076,1824.0,1823.9,6.579303]
[1743287506337,0.25506076,1824.0,1823.9,5.48274]
[1743287515440,1.3506251,1824.2,1824.0,5.4823]
[1743287517016,1.3506251,1824.2,1824.0,10.9646]
[1743287520452,1.3506251,1824.2,1824.0,5.4823]
[1743287521056,1.3506251,1824.2,1824.0,10.96464]
[1743287522070,1.3506251,1824.2,1824.1,5.48215]
[1743287522254,1.3506251,1824.3,1824.1,5.48215]
[1743287522553,1.3506251,1824.2,1824.1,5.48215]
[1743287525751,1.3506251,1824.3,1824.2,5.4817]
[1743287525967,1.3506251,1824.7,1824.6,5.48065]
[1743287526141,1.3506251,1824.7,1824.5,10.96167]
[1743287526342,1.3506251,1824.8,1824.7,5.48035]
[1743287526542,1.3506251,1824.8,1824.6,5.48057]
[1743287526866,1.3506251,1824.8,1824.6,5.48051]
[1743287527273,1.3506251,1824.8,1824.6,6.105581]
[1743287527774,0.23775694,1824.7,1824.6,6.105581]
[1743287529336,7.06877204,1824.7,1824.4,5.48124]
[1743287529537,1.3506251,1824.5,1824.2,5.48177]
[1743287529731,1.3506251,1824.4,1824.2,5.48177]
[1743287530137,0.23775694,1824.3,1824.2,5.48177]
[1743287530368,0.23775694,1824.3,1824.2,6.7648025]
[1743287530557,1.3506251,1824.3,1824.2,6.7648025]
[1743287530868,1.3506251,1824.4,1824.2,6.7648025]
[1743287531081,0.23775694,1824.3,1824.2,5.48177]
[1743287531242,1.3506251,1824.4,1824.2,5.48177]
[1743287531442,0.23775694,1824.3,1824.2,5.48177]
[1743287531643,1.3506251,1824.4,1824.2,5.48177]
[1743287531950,0.23775694,1824.3,1824.2,10.96342]
[1743287532152,0.23775694,1824.3,1824.2,12.136782]
[1743287532454,1.3506251,1824.3,1824.2,6.655012]
[1743287532638,1.58838204,1824.3,1824.2,6.655012]
[1743287535382,1.58838204,1824.3,1824.2,5.48165]
[1743287536289,1.58838204,1824.3,1824.0,5.48242]
[1743287536575,4.3506251,1824.2,1823.9,21.14529]
[1743287537144,0.23775694,1824.1,1824.0,5.48239]
[1743287537552,4.3506251,1824.2,1824.0,10.96468]
[1743287537756,0.23775694,1824.1,1824.0,10.96468]
[1743287537948,0.23775694,1824.1,1824.0,12.061148]
[1743287538140,4.3506251,1824.2,1824.0,12.061148]
[1743287538340,0.23775694,1824.1,1824.0,12.061148]
[1743287538682,4.3506251,1824.2,1824.0,12.061148]
[1743287538885,0.23775694,1824.1,1824.0,12.061148]
[1743287539057,4.3506251,1824.2,1824.0,12.061148]
[1743287539258,0.23775694,1824.1,1824.0,6.578758]
[1743287539463,4.3506251,1824.2,1824.0,6.578758]
[1743287539764,0.23775694,1824.1,1824.0,6.578758]
[1743287540056,1.3506251,1824.2,1824.1,5.48215]
[1743287540258,0.23775694,1824.2,1824.1,5.48215]
[1743287541082,1.3506251,1824.2,1824.0,7.368958]
[1743287541272,0.23964586,1824.1,1824.0,7.368958]
[1743287541473,1.3506251,1824.2,1824.0,12.851218]
[1743287541790,0.23964586,1824.1,1824.0,12.851218]
[1743287542199,1.6776251,1824.4,1824.2,5.48185]
[1743287542399,1.3506251,1824.4,1824.2,10.96351]
[1743287542704,1.3506251,1824.5,1824.3,5.48155]
[1743287542865,1.3506251,1824.6,1824.5,5.48095]
[1743287543064,1.3506251,1824.6,1824.3,0.7902]
[1743287543270,1.3506251,1824.6,1824.4,5.48122]
[1743287543802,1.3506251,1824.6,1824.4,10.96227]
[1743287544306,1.3506251,1824.5,1824.4,6.656297]
[1743287544902,2.24612597,1824.7,1824.4,6.656297]
[1743287545200,2.24612597,1824.7,1824.4,5.48105]
[1743287545512,7.72653597,1824.7,1824.4,5.48105]
[1743287548404,3.0,1824.6,1824.3,5.48148]
[1743287549481,3.0,1824.6,1824.4,5.48119]
[1743287549687,2.24612597,1824.7,1824.4,6.27139]
[1743287549872,2.24612597,1824.7,1824.5,5.48077]
[1743287550077,2.24612597,1824.7,1824.5,5.48069]
[1743287550911,2.24612597,1824.7,1824.4,6.27143]
[1743287552117,7.72658597,1824.7,1824.3,5.48146]
[1743287552307,5.24612597,1824.5,1824.2,15.66181]
[1743287552475,10.72709597,1824.5,1824.2,15.66181]
[1743287552672,5.57312597,1824.3,1824.2,10.18]
[1743287552871,11.05467597,1824.3,1824.2,10.18]
[1743287553072,3.0,1824.2,1823.9,5.48265]
[1743287553287,3.0,1824.2,1823.9,6.10518269]
[1743287553474,2.57312597,1824.3,1824.0,5.48234]
[1743287553677,2.57312597,1824.3,1824.1,5.48207]
[1743287553909,2.57312597,1824.3,1824.0,5.48234]
[1743287554881,2.57312597,1824.3,1824.0,11.7877]
[1743287555114,2.24612597,1824.3,1824.0,11.7877]
[1743287555314,2.24612597,1824.3,1824.0,6.30536]
[1743287557719,0.24423265,1824.2,1824.0,6.30536]
[1743287559688,0.24423265,1824.2,1824.0,5.48226]
[1743287562409,3.24423265,1824.2,1824.0,5.48226]
[1743287565029,3.24423265,1824.2,1823.9,5.48273]
[1743287565229,3.57123265,1824.2,1823.9,10.96546]
[1743287566417,3.57123265,1824.2,1823.9,13.162316]
[1743287566925,2.24612597,1824.1,1823.9,5.48273]
[1743287567223,2.24612597,1824.1,1823.8,15.66302]
[1743287567395,0.24423265,1824.0,1823.8,15.66302]
[1743287567599,0.24423265,1824.0,1823.8,21.1459]
[1743287567810,0.24423265,1824.0,1823.8,15.66288]
[1743287569331,0.24423265,1824.0,1823.8,16.39739385]
[1743287569530,0.24423265,1824.0,1823.8,6.21739385]
[1743287570235,0.24423265,1824.0,1823.8,11.70027385]
[1743287571636,0.24423265,1824.0,1823.8,6.21739385]
[1743287572035,0.24423265,1824.0,1823.8,11.70026385]
[1743287576740,0.24423265,1824.0,1823.9,5.48275]
[1743287576908,4.59265271,1824.0,1823.9,5.48275]
[1743287577109,1.59265271,1824.0,1823.9,5.48275]
[1743287582257,1.59265271,1824.0,1823.8,6.21738385]
[1743287582748,1.59265271,1824.0,1823.8,11.70026385]
[1743287583349,0.24423265,1824.0,1823.9,5.48275]
[1743287583521,0.24423265,1824.0,1823.9,6.65277639]
[1743287583852,1.34842006,1824.1,1824.0,5.48237]
[1743287585953,4.34842006,1824.2,1823.9,5.48266]
[1743287587173,4.34842006,1824.2,1823.9,10.96524]
[1743287587359,1.34842006,1824.2,1824.0,5.48224]
[1743287587555,4.34842006,1824.3,1824.0,10.96451]
[1743287587755,0.24119723,1824.2,1824.0,10.96451]
[1743287588056,1.58961729,1824.2,1824.1,5.48215]
[1743287589758,0.24119723,1824.2,1824.1,5.48215]
[1743287590059,0.24119723,1824.2,1824.1,6.654389]
[1743287590436,1.58961729,1824.2,1824.1,6.654389]
[1743287590647,1.58961729,1824.2,1824.1,5.48215]
[1743287591043,1.58961729,1824.2,1824.0,6.24042]
[1743287591443,1.58961729,1824.2,1824.0,11.72268]
[1743287591650,1.58961729,1824.2,1824.0,10.96468]
[1743287591956,1.58961729,1824.2,1824.0,10.96458]
[1743287593665,1.34842006,1824.1,1823.9,5.48272]
[1743287593965,1.34842006,1824.0,1823.8,15.66292]
[1743287594264,1.59076412,1823.9,1823.8,15.66292]
[1743287594834,0.24234406,1823.9,1823.8,15.66292]
[1743287595035,2.24754229,1824.1,1823.8,15.66292]
[1743287595263,0.24234406,1824.0,1823.8,15.66292]
[1743287597066,0.24234406,1824.0,1823.8,15.66283]
[1743287598872,0.24234406,1824.0,1823.8,5.48283]
[1743287602571,0.24234406,1824.0,1823.8,10.96573]
[1743287602776,0.24234406,1824.0,1823.9,5.48275]
[1743287604533,0.24234406,1824.0,1823.9,6.23435]
[1743287604739,3.327,1824.4,1824.1,5.48198]
[1743287604937,0.24234406,1824.3,1824.1,10.96399]
[1743287605177,3.327,1824.4,1824.1,11.82310653]
[1743287605471,0.24234406,1824.3,1824.2,5.48185]
[1743287605683,3.0,1824.4,1824.2,5.48185]
[1743287605850,0.24234406,1824.3,1824.2,5.48185]
[1743287606050,3.0,1824.4,1824.2,5.48185]
[1743287606241,0.24234406,1824.3,1824.2,5.48185]
[1743287606443,3.0,1824.4,1824.2,5.48185]
[1743287606771,0.24234406,1824.3,1824.2,5.48185]
[1743287606977,3.0,1824.4,1824.2,5.48185]
[1743287607140,0.24234406,1824.3,1824.2,5.48185]
[1743287607340,3.0,1824.4,1824.2,6.578233]
[1743287607542,0.24301865,1824.3,1824.2,5.48185]
[1743287607842,0.24301865,1824.3,1824.1,5.48204]
[1743287608045,3.0,1824.4,1824.1,5.48204]
[1743287608370,0.24301865,1824.3,1824.1,5.48204]
[1743287608683,3.0,1824.4,1824.1,5.48204]
[1743287608854,0.24301865,1824.3,1824.1,6.578485]
[1743287609053,3.0,1824.4,1824.1,6.578485]
[1743287609387,0.24301865,1824.3,1824.1,6.578485]
[1743287609718,3.0,1824.4,1824.1,6.578485]
[1743287609907,0.24301865,1824.2,1824.1,6.578485]
[1743287610062,3.0,1824.4,1824.1,6.578485]
[1743287610387,0.24301865,1824.3,1824.1,6.578485]
[1743287610587,0.24301865,1824.3,1824.2,0.6578485]
[1743287611087,3.0,1824.4,1824.2,0.6578485]
[1743287611249,0.24301865,1824.3,1824.2,0.6578485]
[1743287611449,3.0,1824.4,1824.2,0.6578485]
[1743287611650,0.24301865,1824.3,1824.2,0.6578485]
[1743287611850,3.0,1824.4,1824.2,0.6578485]
[1743287612086,0.24301865,1824.3,1824.2,0.6578485]
[1743287612250,3.0,1824.4,1824.2,0.6578485]
[1743287612579,0.24301865,1824.3,1824.1,6.578395]
[1743287612882,0.24301865,1824.2,1824.1,6.578395]
[1743287613070,3.0,1824.4,1824.1,6.578395]
[1743287613274,0.24301865,1824.3,1824.1,6.578395]
[1743287613471,3.0,1824.4,1824.1,6.578395]
[1743287613673,0.24301865,1824.3,1824.1,6.578395]
[1743287613875,3.0,1824.4,1824.1,6.578395]
[1743287614077,0.24301865,1824.3,1824.1,5.48195]
[1743287614248,3.0,1824.4,1824.1,5.48195]
[1743287614455,3.0,1824.2,1823.9,16.41434]
[1743287614885,0.24301865,1824.1,1823.9,16.41434]
[1743287615193,3.0,1824.2,1823.9,16.41434]
[1743287615355,0.24301865,1824.0,1823.9,16.41434]
[1743287615559,3.0,1824.2,1823.9,19.116478]
[1743287615793,0.24301865,1824.0,1823.9,16.41434]
[1743287616011,8.48245,1824.0,1823.9,10.18]
[1743287616220,3.57001865,1824.0,1823.9,10.18]
[1743287616527,3.0,1823.9,1823.7,6.25775]
[1743287617196,0.24301865,1823.8,1823.7,6.25775]
[1743287617604,3.0,1823.9,1823.7,6.25775]
[1743287617806,0.24301865,1823.8,1823.7,6.25775]
[1743287618182,3.0,1823.9,1823.7,6.25775]
[1743287618381,0.24301865,1823.8,1823.7,6.25775]
[1743287618910,1.59162915,1823.8,1823.6,5.48365]
[1743287619106,4.3486105,1823.7,1823.3,6.25895]
[1743287619306,1.3486105,1823.4,1823.2,5.48485]
[1743287619510,1.3486105,1823.3,1823.1,10.9544]
[1743287619678,1.3486105,1823.2,1822.9,6.26015]
[1743287619879,1.3486105,1823.0,1822.8,15.66592]
[1743287620077,1.3486105,1823.0,1822.9,5.48576]
[1743287620494,1.58522029,1823.0,1822.9,5.48576]
[1743287620991,0.23660979,1823.0,1822.9,5.48576]
[1743287621195,2.24973972,1823.0,1822.8,17.232512]
[1743287621580,2.24973972,1823.0,1822.8,15.66592]
[1743287621793,0.23660979,1822.9,1822.7,5.48631]
[1743287621995,2.24973972,1822.8,1822.6,5.48641]
[1743287622298,2.24973972,1822.8,1822.5,10.9544]
[1743287622299,2.24973972,1822.8,1822.5,16.44132]
[1743287622618,0.23660979,1822.7,1822.5,16.44132]
[1743287623194,0.23660979,1822.7,1822.5,0.7744]
[1743287623398,2.24973972,1822.6,1822.4,15.66711]
[1743287623885,0.23073569,1822.5,1822.4,5.48711]
[1743287624087,2.24973972,1822.6,1822.4,5.48711]
[1743287624450,0.22371444,1822.5,1822.3,6.26195]
[1743287624739,0.22371444,1822.5,1822.3,5.48755]
[1743287625484,0.22371444,1822.5,1822.3,10.97489]
[1743287627190,0.22371444,1822.5,1822.3,5.48734]
[1743287627692,0.22371444,1822.5,1822.3,10.97469]
[1743287628013,2.24973972,1822.4,1822.3,5.48734]
[1743287628522,2.47196787,1822.4,1822.3,5.48734]
[1743287629903,2.47196787,1822.4,1822.2,6.26223]
[1743287630620,2.47196787,1822.4,1822.2,5.48783]
[1743287636230,2.47196787,1822.4,1822.1,5.48791]
[1743287636535,2.47196787,1822.4,1822.1,10.9759]
[1743287636933,2.47196787,1822.4,1822.1,5.48791]
[1743287637234,2.24973972,1822.2,1822.0,21.9069]
[1743287637436,2.24973972,1822.2,1822.0,11.7269]
[1743287637631,2.24973972,1822.2,1822.1,5.48817]
[1743287639639,2.24973972,1822.4,1822.1,5.48817]
[1743287640244,2.24973972,1822.4,1822.2,5.48775]
[1743287640543,2.24973972,1822.4,1822.1,5.4881]
[1743287641241,2.24973972,1822.4,1822.0,6.23862]
[1743287641242,7.73701972,1822.4,1822.0,6.23862]
[1743287641638,7.73762972,1822.2,1821.9,5.48877]
[1743287641846,7.73762972,1822.2,1821.8,6.23918]
[1743287642018,2.24973972,1822.0,1821.8,6.23918]
[1743287642218,5.24973972,1822.0,1821.7,15.66916]
[1743287642540,11.06522972,1822.0,1821.7,15.66916]
[1743287642914,5.57673972,1822.0,1821.7,15.66916]
[1743287645828,5.57673972,1822.0,1821.7,5.48916]
[1743287646147,5.57673972,1822.0,1821.7,10.97835]
[1743287646353,5.57673972,1822.0,1821.7,5.48916]
[1743287647451,5.57673972,1822.0,1821.8,5.48906]
[1743287647619,0.21405066,1821.9,1821.8,5.48906]
[1743287647821,0.21405066,1821.9,1821.7,5.48936]
[1743287648355,2.24973972,1821.8,1821.2,10.18]
[1743287648649,2.24973972,1821.5,1821.3,0.7748]
[1743287648826,2.24973972,1821.5,1821.2,5.4908]
[1743287649029,0.20938528,1821.4,1821.2,5.4908]
[1743287651253,0.20938528,1821.4,1821.2,5.49067]
[1743287651619,0.20938528,1821.4,1821.3,5.49058]
[1743287657567,0.20938528,1821.4,1821.2,5.49067]
[1743287657951,6.02666528,1821.4,1821.1,5.49118]
[1743287658163,6.85430578,1821.4,1821.0,5.49136]
[1743287658365,2.24973972,1821.3,1821.0,5.49136]
[1743287658536,2.24973972,1821.3,1821.1,5.49118]
[1743287658735,0.20843846,1821.2,1821.1,5.49118]
[1743287660440,0.20843846,1821.2,1821.1,6.31588859]
[1743287660646,0.20843846,1821.2,1821.1,7.44170486]
[1743287660853,5.24973972,1821.5,1821.2,5.49075]
[1743287662666,0.2058678,1821.4,1821.2,5.49075]
[1743287663180,0.2058678,1821.4,1821.2,5.49071]
[1743287663338,0.2058678,1821.4,1821.3,5.49058]
[1743287664640,0.2058678,1821.4,1821.2,5.49071]
[1743287667774,0.2058678,1821.4,1821.3,5.49058]
[1743287671447,0.2058678,1821.4,1821.1,6.26095]
[1743287671667,0.2058678,1821.4,1821.1,5.49115]
[1743287672170,0.327,1821.3,1821.1,5.49115]
[1743287672594,0.2058678,1821.2,1821.1,5.49115]
[1743287674575,11.06671972,1821.5,1821.1,5.49115]
[1743287674889,0.20437905,1821.2,1821.1,5.49115]
[1743287675376,12.72236069,1821.5,1821.1,5.49115]
[1743287675545,0.20437905,1821.2,1821.1,5.49115]
[1743287675747,12.72236069,1821.5,1821.1,5.49115]
[1743287675944,0.20437905,1821.4,1821.1,5.49115]
[1743287677081,0.20437905,1821.4,1821.1,5.491]
[1743287677297,0.20437905,1821.4,1821.2,5.49084]
[1743287677456,0.20437905,1821.4,1821.3,5.49058]
[1743287677648,0.20437905,1821.4,1821.2,5.49084]
[1743287677649,0.20437905,1821.4,1821.2,5.49079]
[1743287678073,6.27294093,1821.4,1821.0,6.3149]
[1743287678285,6.27294093,1821.4,1821.0,5.4913]
[1743287679690,2.24973972,1821.3,1821.0,5.4913]
[1743287679889,0.327,1821.2,1821.0,5.4913]
[1743287680262,0.20437905,1821.1,1821.0,5.4913]
[1743287680663,0.20437905,1821.1,1820.9,15.67172]
[1743287680884,0.20437905,1821.1,1820.9,5.49172]
[1743287681190,0.20437905,1821.1,1820.9,10.98334]
[1743287682360,0.20437905,1821.1,1820.9,5.49162]
[1743287683091,0.20437905,1821.1,1820.9,10.98325]
[1743287683798,0.20437905,1821.1,1820.9,5.49162]
[1743287683980,5.45411877,1821.1,1820.8,5.49205]
[1743287684162,6.58133065,1821.1,1820.8,5.49205]
[1743287685395,6.58133065,1821.1,1820.9,5.49168]
[1743287685592,6.58133065,1821.1,1821.0,5.49148]
[1743287685800,6.58133065,1821.1,1820.9,5.49168]
[1743287690398,5.45411877,1821.1,1820.9,5.49168]
[1743287692601,3.20437905,1821.1,1820.9,5.49167]
[1743287697416,3.20437905,1821.1,1820.9,10.98332]
[1743287697601,3.20437905,1821.1,1820.9,5.49166]
[1743287699985,0.19625815,1821.0,1820.9,5.49166]
[1743287718033,1.67990638,1821.2,1820.9,5.49166]
[1743287718332,0.19537797,1821.0,1820.9,10.98325]
[1743287718531,1.67990638,1821.2,1820.9,10.98325]
[1743287718735,0.19537797,1821.0,1820.9,10.98325]
[1743287718919,1.35290638,1821.2,1821.0,5.49148]
[1743287719100,0.19537797,1821.0,1820.9,6.31398]
[1743287719303,1.67990638,1821.6,1821.3,5.49039]
[1743287719531,1.67990638,1821.6,1821.3,10.98076]
[1743287719931,1.67990638,1821.6,1821.4,5.49027]
[1743287720227,2.06983802,1821.6,1821.5,5.48998]
[1743287720447,1.35290638,1821.7,1821.4,5.49027]
[1743287720730,1.67990638,1821.8,1821.6,5.48967]
[1743287720939,1.67990638,1821.8,1821.5,5.48993]
[1743287720940,1.35290638,1821.7,1821.5,5.48993]
[1743287721148,1.35290638,1821.6,1821.3,5.49044]
[1743287721433,1.35290638,1821.5,1821.3,10.98081]
[1743287721628,1.35290638,1821.6,1821.4,5.49028]
[1743287722231,1.35290638,1821.6,1821.4,10.98033]
[1743287722638,0.19537797,1821.5,1821.4,10.98033]